bitfinex/quotes_ETHUSD_20230404
["timestamp","ask_amount","ask_price","bid_price","bid_amount"]
[1680643731909,3.50191827,1873.6,1873.1,0.24624]
[1680643732707,3.74208827,1873.6,1873.1,0.006]
[1680643733306,3.50191827,1873.6,1873.1,1.25220194]
[1680643733466,3.50191827,1873.6,1873.1,0.24624]
[1680643733664,4.4724627,1873.6,1873.1,0.24624]
[1680643734096,4.2322827,1873.6,1873.1,0.24624]
[1680643736812,4.4724527,1873.6,1873.1,1.01196194]
[1680643739534,4.4724627,1873.6,1873.1,1.25220194]
[1680643739689,3.50191827,1873.6,1873.1,1.25220194]
[1680643740034,0.73589609,1873.6,1873.1,1.25220194]
[1680643740332,0.97607609,1873.6,1873.1,1.25220194]
[1680643740518,0.97607609,1873.6,1873.1,1.01196194]
[1680643740917,0.73589609,1873.6,1873.1,1.25220194]
[1680643741123,0.73589609,1873.6,1873.1,1.56470827]
[1680643741302,0.97606609,1873.6,1873.1,1.56470827]
[1680643741508,0.97607609,1873.6,1873.1,1.56470827]
[1680643741839,0.73589609,1873.6,1873.1,1.56470827]
[1680643742039,0.97606609,1873.6,1873.1,1.56470827]
[1680643743341,0.97606609,1873.6,1873.1,2.71682964]
[1680643743810,0.97606609,1873.6,1873.2,1.00596194]
[1680643744014,0.97606609,1873.6,1873.2,0.004]
[1680643744322,0.97606609,1873.6,1873.1,2.71682964]
[1680643744739,1.45641609,1873.6,1873.2,0.27168296]
[1680643745657,1.45641609,1873.6,1873.2,1.2776449]
[1680643745861,1.45641609,1873.6,1873.2,0.27568296]
[1680643746064,1.45641609,1873.6,1873.2,0.27168296]
[1680643747459,1.45641609,1873.6,1873.2,1.2776449]
[1680643747667,1.45641609,1873.6,1873.2,1.00796194]
[1680643747823,1.45641609,1873.6,1873.2,1.00596194]
[1680643748239,4.22243827,1873.6,1873.2,1.00596194]
[1680643748572,4.22243827,1873.6,1873.2,0.004]
[1680643748872,4.22243827,1873.6,1873.1,1.01196194]
[1680643749036,5.3620521,1873.6,1873.1,1.01196194]
[1680643749233,5.3640521,1873.6,1873.1,1.01196194]
[1680643749860,1.45841609,1873.6,1873.1,2.40432331]
[1680643750183,1.45641609,1873.6,1873.1,2.40432331]
[1680643750465,1.45641609,1873.6,1873.1,1.01196194]
[1680643755139,1.45641609,1873.6,1873.1,2.40432331]
[1680643755337,1.45641609,1873.6,1873.1,1.01196194]
[1680643756485,1.45641609,1873.6,1873.1,2.40432331]
[1680643756871,1.45641609,1873.6,1873.1,1.01196194]
[1680643757680,1.45641609,1873.6,1873.1,2.40432331]
[1680643758061,1.45641609,1873.6,1873.1,1.01196194]
[1680643758257,1.45641609,1873.6,1873.1,2.64475564]
[1680643758885,1.45641609,1873.6,1873.1,1.25239427]
[1680643759092,0.72061,1873.4,1873.1,0.98016194]
[1680643759244,0.72061,1873.4,1872.9,0.002]
[1680643759245,6.48663218,1873.4,1872.9,1.39436137]
[1680643759478,6.49727413,1873.4,1872.8,6.30426137]
[1680643759679,0.64972741,1873.3,1872.9,1.39236137]
[1680643759875,0.65836936,1873.3,1872.9,1.39236137]
[1680643760077,0.89857936,1873.3,1872.9,1.39236137]
[1680643760279,0.00864195,1873.3,1872.9,1.39236137]
[1680643760479,0.00864195,1873.3,1873.0,0.076]
[1680643761609,6.01687413,1873.4,1873.0,0.076]
[1680643763106,3.01064195,1873.4,1873.0,0.076]
[1680643763315,3.24884195,1873.4,1873.0,0.076]
[1680643764232,5.23083282,1873.4,1873.0,0.076]
[1680643764400,5.23283282,1873.4,1873.0,0.076]
[1680643767890,0.62777791,1873.3,1873.0,0.076]
[1680643768234,0.86799791,1873.3,1873.0,0.076]
[1680643769744,0.62777791,1873.3,1873.0,0.076]
[1680643775509,0.86799791,1873.3,1873.0,0.076]
[1680643776333,4.26812416,1873.3,1873.0,0.076]
[1680643777408,4.27675611,1873.3,1873.0,0.076]
[1680643777602,4.03654611,1873.3,1873.0,0.076]
[1680643780231,0.40365461,1873.2,1873.0,0.076]
[1680643780397,0.24024,1873.1,1873.0,0.076]
[1680643780597,3.16967679,1873.2,1873.0,0.076]
[1680643780598,3.40990679,1873.2,1873.0,0.076]
[1680643780810,0.6236001,1873.1,1873.0,0.076]
[1680643781011,0.40421488,1873.1,1873.0,0.076]
[1680643782352,0.40099445,1873.1,1873.0,0.076]
[1680643782859,1.25632087,1873.1,1873.0,0.076]
[1680643784119,1.01608087,1873.1,1873.0,0.076]
[1680643784426,1.25632087,1873.1,1873.0,0.076]
[1680643784632,1.01608087,1873.1,1873.0,0.076]
[1680643786342,1.01608087,1873.1,1872.8,0.1]
[1680643786669,0.61508642,1873.1,1872.8,0.1]
[1680643787368,0.85532642,1873.1,1872.8,0.1]
[1680643787580,0.61508642,1873.1,1872.8,0.1]
[1680643788528,0.85532642,1873.1,1872.8,0.1]
[1680643789573,1.33580642,1873.1,1872.8,0.1]
[1680643789874,2.51270721,1873.1,1872.8,0.1]
[1680643790575,5.27872939,1873.1,1872.8,0.1]
[1680643790778,5.28072939,1873.1,1872.8,0.1]
[1680643791847,5.76120939,1873.1,1872.8,0.1]
[1680643794177,5.28072939,1873.1,1872.8,0.1]
[1680643794380,0.61708642,1873.1,1872.8,0.1]
[1680643794563,0.61508642,1873.1,1872.8,0.1]
[1680643795077,0.85532642,1873.1,1872.8,0.1]
[1680643795479,0.61508642,1873.1,1872.8,0.1]
[1680643795844,0.85532642,1873.1,1872.8,0.1]
[1680643796048,0.61508642,1873.1,1872.8,0.23250636]
[1680643796250,0.61508642,1873.1,1872.8,2.07240994]
[1680643796544,0.61508642,1873.1,1872.8,1.59184994]
[1680643797582,0.61508642,1873.1,1872.8,1.59784994]
[1680643797755,0.61508642,1873.1,1872.9,0.15978499]
[1680643798360,0.61508642,1873.1,1873.0,1.11906358]
[1680643798554,0.61508642,1873.1,1873.0,1.39236137]
[1680643798752,0.61508642,1873.1,1873.0,7.71874137]
[1680643798952,0.61508642,1873.1,1873.0,7.72274137]
[1680643799159,0.61508642,1873.1,1873.0,9.34909622]
[1680643799846,0.24016,1873.7,1873.0,9.34909622]
[1680643800046,0.24016,1873.7,1873.1,1.11814089]
[1680643800276,0.24016,1873.7,1873.1,1.36237089]
[1680643805293,0.23703756,1873.7,1873.1,1.36437089]
[1680643805592,0.23703756,1873.7,1873.2,0.13643709]
[1680643806684,10.15520147,1873.8,1873.2,0.37665709]
[1680643806885,10.15520147,1873.8,1873.2,0.85711709]
[1680643807059,10.15520147,1873.8,1873.4,0.069]
[1680643807261,10.39535147,1873.8,1873.4,0.069]
[1680643807572,10.15520147,1873.8,1873.4,0.069]
[1680643808202,10.39535147,1873.8,1873.4,0.069]
[1680643808705,0.26405147,1873.8,1873.4,0.069]
[1680643808993,3.26205147,1873.8,1873.4,0.069]
[1680643810166,3.74235147,1873.8,1873.4,0.069]
[1680643816261,4.59297016,1873.8,1873.4,0.069]
[1680643816464,7.35899234,1873.8,1873.4,0.069]
[1680643816690,13.14682218,1873.7,1873.4,0.069]
[1680643816872,0.24019,1873.5,1873.4,0.069]
[1680643817206,6.21721218,1873.5,1873.4,0.069]
[1680643817498,7.6521294,1873.5,1873.4,0.069]
[1680643818987,7.4119394,1873.5,1873.4,0.069]
[1680643820014,7.4119394,1873.5,1873.1,0.24024]
[1680643820176,2.76602218,1873.4,1873.1,0.24024]
[1680643820924,0.01064195,1873.5,1873.1,0.24024]
[1680643821073,7.64024195,1873.6,1873.1,0.24024]
[1680643821413,7.64024195,1873.6,1873.1,0.312314]
[1680643822402,0.55655642,1873.5,1873.1,0.312314]
[1680643823711,0.55655642,1873.5,1873.1,0.792794]
[1680643829126,10.39144195,1873.7,1873.1,0.792794]
[1680643829891,10.39144195,1873.7,1873.1,1.91093489]
[1680643830143,0.55902199,1873.6,1873.2,0.19109349]
[1680643830307,0.55902199,1873.6,1873.3,0.72064]
[1680643841336,0.55902199,1873.6,1873.3,1.83878089]
[1680643844099,0.5568329,1873.6,1873.3,1.83878089]
[1680643844314,0.5568329,1873.6,1873.4,0.18387809]
[1680643844517,0.5568329,1873.6,1873.5,0.24019]
[1680643845200,4.8094,1873.8,1873.5,0.24019]
[1680643845532,4.8074,1873.8,1873.5,0.24019]
[1680643846074,0.55990533,1873.7,1873.5,0.24019]
[1680643846277,0.55990533,1873.7,1873.4,0.18387809]
[1680643846756,0.55990533,1873.7,1873.4,0.42407809]
[1680643846945,0.55990533,1873.7,1873.4,0.18387809]
[1680643847155,0.55990533,1873.7,1873.4,0.42407809]
[1680643852547,0.55990533,1873.7,1873.4,0.2402]
[1680643864603,0.55672273,1873.7,1873.4,0.2402]
[1680643872208,0.55672273,1873.7,1873.4,1.35834089]
[1680643873449,0.55672273,1873.7,1873.4,1.11814089]
[1680643873659,0.55672273,1873.7,1873.4,1.35834089]
[1680643874560,0.55672273,1873.7,1873.4,2.16245212]
[1680643878300,0.55672273,1873.7,1873.4,3.55481349]
[1680643878623,0.55672273,1873.7,1873.4,3.55881349]
[1680643878803,0.55672273,1873.7,1873.4,2.16645212]
[1680643878977,0.55672273,1873.7,1873.4,2.16245212]
[1680643879170,0.55672273,1873.7,1873.5,0.21624521]
[1680643879371,0.55672273,1873.7,1873.5,0.45642521]
[1680643880787,0.55672273,1873.7,1873.5,2.0549461]
[1680643881000,0.55672273,1873.7,1873.5,7.6699461]
[1680643881177,0.55672273,1873.7,1873.6,3.88416307]
[1680643881488,0.55672273,1873.7,1873.6,12.59342604]
[1680643881685,0.55672273,1873.7,1873.6,12.59542604]
[1680643882012,0.55672273,1873.7,1873.6,12.86964652]
[1680643882234,0.69380896,1874.2,1873.6,12.87164652]
[1680643882389,16.52948586,1874.3,1873.7,8.25196295]
[1680643882576,0.68012371,1874.3,1873.8,9.10144218]
[1680643882778,0.11000001,1874.3,1873.8,9.10344218]
[1680643883100,0.55432302,1874.2,1873.8,9.10344218]
[1680643883300,0.55432302,1874.2,1874.0,0.24012]
[1680643883705,0.55432302,1874.2,1874.0,0.72037]
[1680643887635,0.55143883,1874.2,1874.0,0.72037]
[1680643889201,0.55143883,1874.2,1874.0,6.33537]
[1680643889397,0.55143883,1874.2,1874.1,8.61102218]
[1680643889628,0.55143883,1874.2,1874.1,10.2667014]
[1680643891405,0.55143883,1874.2,1874.1,1.17544922]
[1680643891600,0.55143883,1874.2,1874.1,1.17344922]
[1680643893325,0.55143883,1874.2,1874.1,6.78844922]
[1680643893522,0.55143883,1874.2,1874.1,6.79044922]
[1680643894135,0.55143883,1874.2,1874.1,7.27067922]
[1680643901229,0.55143883,1874.2,1874.1,6.79044922]
[1680643903716,0.55143883,1874.2,1874.1,9.5564714]
[1680643903921,0.55143883,1874.2,1874.1,10.0367014]
[1680643905136,0.55143883,1874.2,1874.1,6.79044922]
[1680643908514,0.54928378,1874.2,1874.1,6.79044922]
[1680643909114,0.54928378,1874.2,1874.1,7.27067922]
[1680643910573,0.54928378,1874.2,1874.1,6.79044922]
[1680643912042,0.54928378,1874.2,1874.1,7.27067922]
[1680643912637,0.54928378,1874.2,1874.1,10.0367014]
[1680643915887,0.11000001,1874.3,1874.1,10.2667014]
[1680643916092,0.11000001,1874.3,1874.2,9.40769232]
[1680643916291,0.11000001,1874.3,1874.2,10.12999232]
[1680643933149,0.88933558,1874.3,1874.2,10.12999232]
[1680643938677,0.88535978,1874.3,1874.2,10.12999232]
[1680643939309,0.88535978,1874.3,1874.2,10.35999232]
[1680643939511,0.88535978,1874.3,1874.2,10.35740218]
[1680643943515,0.88535978,1874.3,1874.2,10.42940218]
[1680643947148,0.88535978,1874.3,1874.2,12.94156185]
[1680643947678,0.88535978,1874.3,1874.2,11.82176355]
[1680643948148,0.10602421,1874.3,1874.2,12.93998555]
[1680643948447,0.10602421,1874.3,1874.2,11.82176355]
[1680643950440,0.10602421,1874.3,1874.2,12.93943615]
[1680643950745,0.10602421,1874.3,1874.2,11.82176355]
[1680643951839,0.10602421,1874.3,1874.2,12.9394534]
[1680643953357,0.10602421,1874.3,1874.2,11.82176355]
[1680643954083,0.10602421,1874.3,1874.2,12.93929143]
[1680643954243,0.10602421,1874.3,1874.2,11.82176355]
[1680643956186,0.10602421,1874.3,1874.2,12.93921748]
[1680643956369,0.10602421,1874.3,1874.2,11.82176355]
[1680643956572,0.10602421,1874.3,1874.2,12.93907184]
[1680643956887,0.10602421,1874.3,1874.2,11.82176355]
[1680643957393,0.10602421,1874.3,1874.2,11.54669603]
[1680643958180,0.10602421,1874.3,1874.2,12.9390574]
[1680643958385,0.10602421,1874.3,1874.2,11.54669603]
[1680643958559,0.10602421,1874.3,1874.2,11.82176355]
[1680643959405,0.10602421,1874.3,1874.2,12.938564]
[1680643959611,0.10602421,1874.3,1874.2,12.93856268]
[1680643960311,0.10602421,1874.3,1874.2,11.82176355]
[1680643962182,0.10602421,1874.3,1874.2,12.93843654]
[1680643962868,0.10602421,1874.3,1874.2,11.82176355]
[1680643963070,0.10386236,1874.3,1874.2,11.82176355]
[1680643963499,0.10386236,1874.3,1874.2,12.93837831]
[1680643963813,0.10386236,1874.3,1874.2,11.82176355]
[1680643968562,0.10386236,1874.3,1874.2,16.64686355]
[1680643970162,0.10386236,1874.3,1874.2,15.25450218]
[1680643971862,0.10386236,1874.3,1874.2,16.875513]
[1680643973345,0.1,1874.5,1874.3,1.6875513]
[1680643973550,0.1,1874.5,1874.4,18.94985086]
[1680643973759,0.1,1874.5,1874.4,18.95185086]
[1680643974264,0.1,1874.5,1874.4,12.73066586]
[1680643974634,0.1,1874.5,1874.4,12.59530218]
[1680643974780,0.1,1874.5,1874.4,19.10496937]
[1680643974943,0.1,1874.5,1874.4,20.77878778]
[1680643975284,0.1,1874.5,1874.4,21.04515146]
[1680643975438,0.1,1874.5,1874.4,19.37133305]
[1680643975637,0.1,1874.5,1874.4,19.60133305]
[1680643977078,0.1,1874.5,1874.4,21.27515146]
[1680643977483,0.1,1874.5,1874.4,19.60133305]
[1680643980977,0.1,1874.5,1874.4,24.27515146]
[1680643981889,0.1,1874.8,1874.4,24.27515146]
[1680643981890,0.1,1874.8,1874.7,5.615]
[1680643982046,0.1,1874.8,1874.7,26.42441218]
[1680643982386,0.1,1874.8,1874.7,26.69077586]
[1680643982596,0.1,1874.8,1874.7,28.36109633]
[1680643983893,0.1,1874.8,1874.7,23.82677586]
[1680643984946,0.1,1874.8,1874.7,25.21788343]
[1680643986777,0.05,1875.0,1874.7,25.21788343]
[1680643986977,0.05,1875.0,1874.9,8.38102218]
[1680643987177,0.05,1875.0,1874.9,10.06310218]
[1680643987373,0.05,1875.0,1874.9,10.29310218]
[1680643987821,0.05,1875.0,1874.9,10.42810218]
[1680643990426,0.05,1875.0,1874.9,10.19810218]
[1680643990579,0.05,1875.0,1874.9,11.58139166]
[1680643991786,0.05,1875.0,1874.9,11.81139166]
[1680643997533,0.05,1875.0,1874.9,8.75803218]
[1680643997732,0.05,1875.0,1874.9,0.37701]
[1680643997948,0.05,1875.0,1874.9,0.37501]
[1680643998450,0.05,1875.0,1874.9,0.135]
[1680644000228,0.63592077,1875.0,1874.9,0.135]
[1680644001969,0.63592077,1875.0,1874.7,0.24003]
[1680644002930,0.71037704,1875.0,1874.7,0.24003]
[1680644004171,0.71037704,1875.0,1874.7,0.7201]
[1680644006342,0.63592077,1875.0,1874.7,9.10112218]
[1680644006672,0.63592077,1875.0,1874.7,9.10312218]
[1680644007374,0.63592077,1875.0,1874.7,3.48812218]
[1680644007673,0.63592077,1875.0,1874.7,9.10112218]
[1680644007970,0.63592077,1875.0,1874.7,3.48812218]
[1680644008173,0.63592077,1875.0,1874.7,3.48612218]
[1680644009561,0.63592077,1875.0,1874.7,9.10112218]
[1680644009766,0.63592077,1875.0,1874.7,9.10312218]
[1680644011670,0.63342337,1875.0,1874.7,9.10712218]
[1680644012173,0.63342337,1875.0,1874.7,3.49012218]
[1680644012364,0.63342337,1875.0,1874.7,3.48612218]
[1680644013164,0.63342337,1875.0,1874.7,3.00605218]
[1680644015656,0.63342337,1875.0,1874.7,0.24003]
[1680644015864,0.63342337,1875.0,1874.7,0.7201]
[1680644018083,0.63342337,1875.0,1874.7,0.24003]
[1680644022489,0.70676571,1875.0,1874.7,0.7201]
[1680644023411,0.63342337,1875.0,1874.7,0.7201]
[1680644027924,0.63342337,1875.0,1874.8,2.76602218]
[1680644028086,0.63342337,1875.0,1874.9,0.24001]
[1680644029205,0.63342337,1875.0,1874.8,2.76602218]
[1680644029395,0.63342337,1875.0,1874.8,3.00604218]
[1680644029814,0.63342337,1875.0,1874.7,0.24803]
[1680644030125,0.63342337,1875.0,1874.8,0.24002]
[1680644034734,0.63342337,1875.0,1874.7,2.76602218]
[1680644034936,0.63342337,1875.0,1874.8,0.24002]
[1680644035443,0.63018488,1875.0,1874.8,0.24002]
[1680644041066,0.63018488,1875.0,1874.7,0.24002]
[1680644041364,0.63018488,1875.0,1874.7,1.35302427]
[1680644043262,0.63018488,1875.0,1874.7,2.71761645]
[1680644043471,0.63018488,1875.0,1874.8,1.11300427]
[1680644043759,0.63018488,1875.0,1874.8,1.35301427]
[1680644046484,0.63018488,1875.0,1874.8,1.11300427]
[1680644048282,0.63018488,1875.0,1874.8,1.35302427]
[1680644052575,0.70320337,1875.0,1874.7,2.50411184]
[1680644052770,0.70320337,1875.0,1874.7,1.11300427]
[1680644053379,0.70320337,1875.0,1874.6,2.74415184]
[1680644054479,0.70320337,1875.0,1874.6,1.35304427]
[1680644056644,0.00362003,1874.6,1874.5,1.11300427]
[1680644056958,0.00362003,1874.6,1874.4,1.11300427]
[1680644057155,0.00362003,1874.6,1874.4,1.35307427]
[1680644057689,0.00362003,1874.6,1874.4,1.11300427]
[1680644058573,0.00362003,1874.6,1874.2,2.51211184]
[1680644058887,0.00362003,1874.6,1874.2,1.35309427]
[1680644059047,0.00362003,1874.6,1874.2,1.83329427]
[1680644059247,0.00362003,1874.6,1874.3,0.24008]
[1680644059473,0.30398203,1874.6,1874.3,0.24008]
[1680644060047,0.30398203,1874.6,1874.2,1.35309427]
[1680644063403,0.30398203,1874.6,1874.2,0.24009]
[1680644064420,0.54403203,1874.6,1874.1,1.35311427]
[1680644064615,0.30398203,1874.6,1874.1,1.35311427]
[1680644065019,0.30398203,1874.6,1874.1,2.74422184]
[1680644065313,0.30398203,1874.6,1874.1,1.35311427]
[1680644066205,3.07000421,1874.6,1874.1,1.35311427]
[1680644066407,0.30700042,1874.5,1874.1,1.35311427]
[1680644066793,0.30700042,1874.5,1874.1,1.83334427]
[1680644067331,0.30700042,1874.5,1874.1,1.11300427]
[1680644067469,0.30700042,1874.5,1874.1,0.24011]
[1680644068112,0.59802105,1874.4,1874.1,0.24011]
[1680644073337,0.59802105,1874.4,1874.1,0.72034]
[1680644074813,0.59802105,1874.4,1874.1,1.86453443]
[1680644075122,0.59802105,1874.4,1874.1,2.9775387]
[1680644075300,0.0255215,1874.6,1874.1,2.9775387]
[1680644075635,0.0255215,1874.6,1874.1,2.79380427]
[1680644077328,0.0255215,1874.6,1874.1,1.6808]
[1680644077639,0.0255215,1874.6,1874.1,2.79380427]
[1680644078602,0.0255215,1874.6,1874.1,4.18491184]
[1680644078798,0.0255215,1874.6,1874.1,2.79380427]
[1680644079138,0.0255215,1874.6,1874.3,0.24008]
[1680644079351,0.0255215,1874.6,1874.3,0.24007]
[1680644080552,0.0255215,1874.6,1874.3,0.72024]
[1680644083122,0.62502659,1874.5,1874.3,0.72024]
[1680644085930,2.76602218,1874.4,1873.9,1.67032047]
[1680644086175,2.76602218,1874.4,1873.7,0.1]
[1680644086176,11.58102218,1874.2,1873.7,0.1]
[1680644086331,2.76602218,1874.0,1873.3,0.526753]
[1680644086533,5.615,1873.7,1873.3,0.526753]
[1680644086781,4.44728218,1873.6,1873.2,0.00358]
[1680644087048,0.2402,1873.4,1873.2,0.00358]
[1680644087217,2.76602218,1873.3,1873.2,0.00358]
[1680644087418,12.17853635,1873.3,1873.2,0.00358]
[1680644087617,15.66096635,1873.3,1873.2,0.00358]
[1680644089644,15.68286782,1873.3,1873.2,0.00358]
[1680644090431,15.91286782,1873.3,1873.2,0.00358]
[1680644095779,27.01556782,1873.3,1873.2,0.00058]
[1680644095978,27.00692587,1873.3,1873.2,0.00058]
[1680644098209,9.215,1873.2,1873.0,0.1]
[1680644098519,11.56921218,1873.1,1873.0,0.1]
[1680644098720,17.18621218,1873.1,1873.0,0.1]
[1680644099128,15.7932698,1873.1,1873.0,0.1]
[1680644099425,15.18621218,1873.1,1873.0,0.03929424]
[1680644100225,15.79051044,1873.1,1872.9,0.1]
[1680644100430,5.43938122,1873.0,1872.9,0.1]
[1680644100589,11.2074034,1873.0,1872.9,0.1]
[1680644101225,11.74911669,1873.0,1872.9,0.03978569]
[1680644101959,11.77101816,1873.0,1872.9,0.03978569]
[1680644102319,11.77101816,1873.0,1872.8,0.1]
[1680644102523,6.943124,1872.9,1872.8,0.1]
[1680644102863,8.626984,1872.9,1872.8,0.1]
[1680644103063,17.441984,1872.9,1872.8,0.1]
[1680644103265,20.074674,1872.9,1872.8,0.1]
[1680644103478,20.61196198,1872.9,1872.8,0.1]
[1680644103840,21.53849023,1872.9,1872.8,0.1]
[1680644104969,21.53849023,1872.9,1872.7,0.1]
[1680644105179,13.98677267,1872.8,1872.7,0.1]
[1680644105474,17.70961267,1872.8,1872.7,0.1]
[1680644105671,18.63614092,1872.8,1872.7,0.1]
[1680644106282,18.63614092,1872.8,1872.7,0.04041738]
[1680644106781,8.815,1872.7,1872.4,0.1]
[1680644106938,18.54470018,1872.7,1872.4,0.1]
[1680644107137,19.47122843,1872.7,1872.4,0.1]
[1680644109066,19.24122843,1872.7,1872.4,0.1]
[1680644110186,19.19122843,1872.7,1872.4,0.1]
[1680644110484,19.42122843,1872.7,1872.4,0.1]
[1680644112308,8.765,1872.5,1872.4,0.1]
[1680644112589,16.44526218,1872.5,1872.4,0.1]
[1680644112887,16.21526218,1872.5,1872.4,0.1]
[1680644113092,16.21526218,1872.5,1872.4,0.05]
[1680644114091,16.80396474,1872.5,1872.3,0.1]
[1680644114392,10.814114,1872.4,1872.3,0.1]
[1680644114587,10.816114,1872.4,1872.3,0.1]
[1680644114953,17.35764225,1872.4,1872.3,0.1]
[1680644115290,18.19534007,1872.4,1872.3,0.1]
[1680644117497,18.19534007,1872.4,1872.3,0.05]
[1680644118059,18.46170375,1872.4,1872.3,0.05]
[1680644119007,18.19534007,1872.4,1872.3,0.05]
[1680644119891,18.72053384,1872.4,1872.3,0.05]
[1680644120077,18.98689752,1872.4,1872.3,0.05]
[1680644120474,3.55,1872.3,1872.1,0.1]
[1680644120692,18.2513,1872.1,1872.0,1.04733]
[1680644120891,18.2513,1872.1,1872.0,0.824777]
[1680644120892,24.24932218,1872.1,1872.0,0.824777]
[1680644121098,27.59606313,1872.1,1872.0,0.824777]
[1680644121301,11.53102218,1871.7,1871.6,0.03740176]
[1680644121469,9.4863,1871.6,1871.5,0.1]
[1680644121670,15.25432218,1871.6,1871.4,0.09637785]
[1680644121869,12.48235218,1871.5,1871.4,0.09637785]
[1680644122161,17.1289654,1871.5,1871.4,0.04316903]
[1680644122392,17.13760735,1871.5,1870.5,9.373289]
[1680644122704,17.13760735,1871.5,1870.6,4.8083]
[1680644122864,9.0055,1871.1,1870.6,4.8083]
[1680644123064,2.76602218,1871.0,1870.6,0.24656]
[1680644123264,2.76602218,1871.0,1870.6,0.24056]
[1680644123510,2.77466413,1871.0,1870.5,0.197599]
[1680644123676,5.92466413,1871.0,1870.5,0.24057]
[1680644123864,5.92466413,1871.0,1870.4,0.24058]
[1680644123865,7.44025534,1871.0,1870.4,0.24058]
[1680644124065,7.46215681,1871.0,1870.4,0.24058]
[1680644124438,7.22164681,1871.0,1870.4,0.72176]
[1680644124766,7.46215681,1871.0,1870.4,0.72176]
[1680644124967,7.46215681,1871.0,1870.4,0.793936]
[1680644125569,7.22164681,1871.0,1870.4,0.312756]
[1680644125770,7.46215681,1871.0,1870.4,0.312756]
[1680644126070,7.46215681,1871.0,1870.5,3.16602218]
[1680644126071,0.01064195,1871.0,1870.5,3.16602218]
[1680644126383,1.02423684,1871.6,1870.6,1.68389]
[1680644126384,0.00864195,1871.6,1870.6,1.68389]
[1680644126588,0.00864195,1871.6,1870.7,8.38102218]
[1680644126926,0.00864195,1871.8,1870.9,1.68361]
[1680644127085,0.00864195,1871.8,1871.0,0.4]
[1680644127086,3.01507413,1871.8,1871.0,0.4]
[1680644127422,0.00864195,1871.8,1871.2,0.72145]
[1680644127913,0.24905195,1871.8,1871.2,0.24048]
[1680644128075,0.24905195,1871.8,1871.2,0.312627]
[1680644128409,0.24905195,1871.8,1871.2,0.312617]
[1680644128410,2.76602218,1871.7,1871.2,0.312617]
[1680644128717,2.77466413,1871.7,1871.2,0.312617]
[1680644128876,3.01508413,1871.7,1871.2,0.072147]
[1680644129206,3.01508413,1871.7,1871.1,0.24049]
[1680644129598,3.01508413,1871.7,1871.0,0.2405]
[1680644130178,0.24045,1871.5,1870.9,0.24051]
[1680644130387,2.76602218,1871.5,1870.9,0.87752822]
[1680644130591,2.77466413,1871.5,1870.9,0.72156]
[1680644131205,0.00864195,1871.5,1870.9,0.72156]
[1680644131404,0.27098342,1871.6,1870.9,0.72156]
[1680644131594,3.27098342,1871.6,1870.9,0.24051]
[1680644131776,2.76602218,1871.5,1870.9,0.312678]
[1680644132003,3.01511413,1871.5,1870.9,0.312678]
[1680644132351,6.21511413,1871.5,1870.6,9.7991]
[1680644132538,5.615,1871.4,1870.6,9.7991]
[1680644132706,11.58102218,1871.3,1870.6,10.52077]
[1680644132906,11.59166413,1871.3,1870.6,0.72367]
[1680644133127,11.59166413,1871.3,1870.7,0.072367]
[1680644133128,5.97666413,1871.3,1870.7,0.072367]
[1680644133323,5.97666413,1871.3,1870.8,0.24053]
[1680644135818,6.69807413,1871.3,1870.7,0.072367]
[1680644136033,6.69807413,1871.3,1870.6,0.24056]
[1680644136422,12.31307413,1871.3,1870.5,4.6452]
[1680644136620,12.31307413,1871.3,1870.5,4.6432]
[1680644137455,12.31307413,1871.3,1870.5,4.88377]
[1680644139360,11.83213413,1871.3,1870.5,5.36492]
[1680644139576,1.23130741,1871.2,1870.6,1.036492]
[1680644139773,4.00597154,1871.2,1870.7,0.24054]
[1680644140150,4.24645154,1871.2,1870.7,0.24054]
[1680644140464,0.42464515,1871.1,1870.5,4.6452]
[1680644140648,0.4332871,1871.1,1870.6,0.24055]
[1680644140833,0.6737871,1871.1,1870.6,0.24055]
[1680644141033,0.6737871,1871.1,1870.5,0.24056]
[1680644141232,0.4332871,1871.1,1870.5,0.3199506]
[1680644141480,0.4332871,1871.1,1870.5,0.8011006]
[1680644141676,0.00864195,1871.1,1870.5,0.8011006]
[1680644143144,1.05241656,1871.0,1870.5,0.8011006]
[1680644146198,1.05241656,1871.0,1870.5,4.52942278]
[1680644146343,1.05241656,1871.0,1870.7,1.68382]
[1680644146539,1.05241656,1871.0,1870.9,0.72157]
[1680644146785,1.05241656,1871.0,1870.9,0.24052]
[1680644146994,1.05241656,1871.0,1870.9,0.72157]
[1680644147502,0.02190147,1871.3,1870.9,0.72157]
[1680644148065,0.02190147,1871.3,1870.9,0.24052]
[1680644148278,0.97577248,1871.2,1870.9,0.24052]
[1680644149405,0.97577248,1871.2,1870.9,0.72157]
[1680644152059,1.07640407,1871.2,1870.7,1.39520895]
[1680644152264,1.07640407,1871.2,1870.7,0.24054]
[1680644152496,1.31688407,1871.2,1870.7,0.24054]
[1680644152705,1.08504602,1871.2,1870.7,0.24054]
[1680644153258,1.08504602,1871.2,1870.7,0.72164]
[1680644154466,1.08504602,1871.2,1870.7,2.11684895]
[1680644155377,0.33000001,1871.1,1870.7,2.11684895]
[1680644155778,0.33000001,1871.1,1870.7,1.63574895]
[1680644157179,0.57050001,1871.1,1870.7,1.39520895]
[1680644157385,0.39797736,1871.1,1870.7,1.39520895]
[1680644157778,0.39797736,1871.1,1870.7,1.63575895]
[1680644157981,3.16399954,1871.1,1870.7,1.63574895]
[1680644158184,0.97520977,1871.0,1870.7,1.63574895]
[1680644158387,0.33000001,1870.9,1870.7,1.63574895]
[1680644159704,0.33000001,1870.9,1870.7,2.11684895]
[1680644159906,0.33000001,1870.9,1870.8,1.39520895]
[1680644160089,0.33000001,1870.9,1870.8,1.63573895]
[1680644160739,0.33000001,1870.9,1870.8,1.48573895]
[1680644162613,0.33000001,1870.9,1870.8,1.24520895]
[1680644163908,0.33000001,1870.9,1870.7,1.62032047]
[1680644164442,0.33000001,1870.9,1870.7,1.86086047]
[1680644164826,0.33000001,1870.9,1870.7,1.62032047]
[1680644165027,0.33000001,1870.9,1870.7,1.86086047]
[1680644165832,0.33000001,1870.9,1870.7,0.24054]
[1680644166040,0.33000001,1870.9,1870.6,2.61284929]
[1680644166333,0.33000001,1870.9,1870.6,2.13172929]
[1680644166534,0.33000001,1870.9,1870.6,1.89117929]
[1680644166718,0.33000001,1870.9,1870.6,2.13173929]